Workbook

Sheet MSU
B1: Tero Lassila | E1: 16.10.1977 Vimpeli
B2: SUPERPESIS | E2: Runkosarja | I2: Kärkilyönnit (KL), pesänvälit | P2: Runkosarja TOP-30 | U2: Ylempi loppusarja | AB2: Ylempi loppusarja TOP-10 | AG2: Play off, voitot, voittoprosentti | AL2: Arvo-ottelut | AO2: Mitalit
B3: Vuosi | C3: Sija | D3: Seura | E3: OTT | F3: KUN | G3: LÖI | H3: TOI | I3: KL | J3: 0 > 1 | K3: 1 > 2 | L3: 2 > 3 | M3: 3 > k | N3: KL-% | P3: LÖI | Q3: TOI | R3: L+T | S3: KL | U3: OTT | V3: KUN | W3: LÖI | X3: TOI | Y3: KL | Z3: KL-% | AB3: LÖI | AC3: TOI | AD3: L+T | AE3: KL | AG3: Puolivälierät | AH3: Välierät | AI3: Pronssi | AJ3: Finaalit | AL3: IL | AM3: LL | AN3: hSM | AO3: K | AP3: H | AQ3: P
B4: 1995 | C4: 11. | D4: ViVe | E4: 2 | F4: 0 | G4: 0 | H4: 0 | I4: 4 | J4: 3 | K4: 1 | L4: 0 | M4: 0 | N4: 44.4 % | AA4: 0
B5: 1996 | C5: 13. | D5: ViVe | E5: 12 | F5: 0 | G5: 1 | H5: 2 | I5: 12 | J5: 9 | K5: 1 | L5: 1 | M5: 1 | N5: 33.3 % | AA5: 0
B6: 1997
B7: 1998 | AA7: 0
B8: 1999 | AA8: 0
B9: 2000 | C9: 6. | D9: NJ | F9: ykköspesis | AA9: 66
B10: 2001 | C10: 4. | D10: ViVe | F10: ykköspesis
B11: 2002 | C11: 4. | D11: ViVe | F11: ykköspesis
B12: 2003 | C12: 2. | D12: ViVe | F12: ykköspesis | AA12: 0
B13: 2004 | C13: 9. | D13: ViVe | E13: 23 | F13: 1 | G13: 13 | H13: 1 | I13: 41 | J13: 3 | K13: 6 | L13: 18 | M13: 14 | N13: 36.9 % | AA13: 0
B14: 2005 | C14: 10. | D14: ViVe | E14: 24 | F14: 2 | G14: 26 | H14: 3 | I14: 68 | J14: 4 | K14: 8 | L14: 28 | M14: 28 | N14: 44.2 % | P14: 19. | AA14: 0
B15: 2006 | C15: 10. | D15: ViVe | E15: 27 | F15: 0 | G15: 25 | H15: 0 | I15: 43 | J15: 1 | K15: 4 | L15: 13 | M15: 25 | N15: 38.7 % | P15: 27.
B16: 2007 | C16: 1. | D16: NJ 2 | F16: suomensarja
B17: 2007 | C17: 4. | D17: NJ | E17: 0 | F17: 0 | G17: 0 | H17: 0 | I17: 0 | J17: 0 | K17: 0 | L17: 0 | M17: 0 | N17: ---- | U17: 5 | V17: 1 | W17: 2 | X17: 1 | Y17: 9 | Z17: 42.9 % | AH17: 2-3 Tahko | AI17: 2-3 KoU (pist.)
B18: 2008 | C18: 5. | D18: YKV | F18: ykköspesis | AA18: 40
B19: 2008 | C19: 10. | D19: SMJ | E19: 1 | F19: 0 | G19: 3 | H19: 0 | I19: 3 | J19: 0 | K19: 0 | L19: 0 | M19: 3 | N19: 42.9 % | AA19: 74
B20: 2009 | C20: 6. | D20: KoU | E20: 22 | F20: 2 | G20: 28 | H20: 3 | I20: 44 | J20: 1 | K20: 3 | L20: 10 | M20: 30 | N20: 31.9 % | P20: 13. | U20: 6 | V20: 0 | W20: 5 | X20: 0 | Y20: 6 | Z20: 21.4 % | AA20: 85 | AG20: 2-4 ViVe
B21: Yhteensä | E21: 111 | F21: 5 | G21: 96 | H21: 9 | I21: 215 | J21: 21 | K21: 23 | L21: 70 | M21: 101 | N21: 38.0 % | P21: 0-0-0 | Q21: 0-0-0 | R21: 0-0-0 | S21: 0-0-0 | U21: =PRODUCT(E27) -> 11 | V21: 1 | W21: 7 | X21: 1 | Y21: 15 | Z21: =PRODUCT(N27) -> 30.6 % | AA21: =SUM(AA3:AA20) -> 265 | AB21: 0-0-0 | AC21: 0-0-0 | AD21: 0-0-0 | AE21: 0-0-0 | AG21: 0/1 | AH21: 0/1 | AI21: 0/1 | AJ21: 0/0 | AL21: =SUM(AL4:AL20) -> 0 | AM21: 0 | AN21: 0 | AO21: 0 | AP21: 0 | AQ21: 0
AG22: 0.0 % | AH22: 0.0 % | AI22: 0.0 % | AJ22: 0.0 %
B23: Pesispörssi | D23: 185.0
B25: URA SUPERISSA | E25: OTT | F25: KUN | G25: LÖI | H25: TOI | I25: KL | K25: ka/L | L25: ka/T | M25: ka/KL | N25: KL-% | P25: ENSIMMÄISET RUNKOSARJASSA | AG25: ENSIMMÄISET PUDOTUSPELEISSÄ | AL25: YLEISÖ
B26: Runkosarja | E26: 111 | F26: 5 | G26: 96 | H26: 9 | I26: 215 | K26: 0.91 | L26: 0.08 | M26: 1.94 | N26: 38.0 % | P26: Ottelu | R26: 30.07. 1995 ViVe - KiPa 0-2 (2-3, 2-16) | AA26: 1. ottelu | AC26: 17 v 9 kk 14 pv | AD26: 19 v 9 kk 23 pv | AG26: Ottelu | AH26: 1. 01.09. 2007 NJ - Tahko 2-1 s | AL26: 1411 | AN26: 29 v 10 kk 16 pv
B27: Ylempi loppusarja | E27: 11 | F27: 1 | G27: 7 | H27: 1 | I27: 15 | K27: 0.73 | L27: 0.09 | M27: 1.36 | N27: 30.6 % | P27: Lyöty | R27: 25.07. 1996 AA - ViVe 1-0 (5-5, 5-2) | AA27: 9. ottelu | AC27: 18 v 9 kk 9 pv | AD27: 19 v 11 kk 16 pv | AG27: Lyöty | AH27: 2. 02.09. 2007 Tahko - NJ 1-2 s | AL27: 2180 | AN27: 29 v 10 kk 17 pv
B28: Alempi loppusarja | E28: 41 | F28: 5 | G28: 65 | H28: 19 | I28: 126 | K28: 1.71 | L28: 0.46 | M28: 3.07 | N28: 45.3 % | P28: Tuotu | R28: 16.05. 1996 SiiPe - ViVe 2-0 (6-5, 3-2) | AA28: 3. ottelu | AC28: 18 v 7 kk 0 pv | AD28: 19 v 9 kk 25 pv | AG28: Tuotu | AH28: 3. 08.09. 2007 NJ - KoU 2-1 s | AL28: 1278 | AN28: 29 v 10 kk 23 pv
B29: KAIKKI | E29: 163 | F29: 11 | G29: 168 | H29: 29 | I29: 356 | K29: 1.10 | L29: 0.18 | M29: 2.18 | N29: 39.9 % | P29: Kunnari | R29: 18.08. 2001 ViVe - PuPe 2-1 (2-1, 0-3, 5-2) | AA29: 23. ottelu | AC29: 23 v 10 kk 2 pv | AD29: 20 v 10 kk 20 pv | AG29: Kunnari | AH29: 3. 08.09. 2007 NJ - KoU 2-1 s | AL29: 1278 | AN29: 29 v 10 kk 23 pv
B31: Seurat | D31: ViVe = Vimpelin Veto (1934), kasvattajaseura
D32: NJ = Nurmon Jymy (1925)
D33: YKV = Ylistaron Kilpa-Veljet (1945)
D34: SMJ = Seinäjoen Maila-Jussit (1932)
D35: KoU = Koskenkorvan Urheilijat (1945)

Sheet MYP, MSS
B1: Tero Lassila | E1: 16.10.1977 Vimpeli
B2: YKKÖSPESIS | E2: Runkosarja | L2: Runkosarja TOP-10 | Q2: Jatkosarjat | X2: SUOMENSARJA | AA2: Runkosarja | AH2: Runkosarja TOP-10 | AM2: Jatkosarjat
B3: Vuosi | C3: Sija | D3: Seura | E3: OTT | F3: KUN | G3: LÖI | H3: TOI | I3: KL | J3: KL-% | L3: LÖI | M3: TOI | N3: L+T | O3: KL | Q3: OTT | R3: KUN | S3: LÖI | T3: TOI | U3: KL | V3: KL-% | X3: Vuosi | Y3: Sija | Z3: Seura | AA3: OTT | AB3: KUN | AC3: LÖI | AD3: TOI | AE3: KL | AF3: KL-% | AH3: LÖI | AI3: TOI | AJ3: L+T | AK3: KL | AM3: OTT | AN3: KUN | AO3: LÖI | AP3: TOI | AQ3: KL | AR3: KL-%
B4: 2000 | C4: 6. | D4: NJ | E4: 26 | F4: 3 | G4: 16 | H4: 16 | I4: 126 | J4: 64.6 % | K4: 195
B5: 2001 | C5: 4. | D5: ViVe | E5: 26 | F5: 5 | G5: 24 | H5: 33 | I5: 116 | J5: 65.5 % | K5: 177 | N5: 10.
B6: 2002 | C6: 4. | D6: ViVe | E6: 22 | F6: 1 | G6: 10 | H6: 16 | I6: 81 | J6: 56.3 % | K6: 144 | Q6: 2 | R6: 0 | S6: 2 | T6: 0 | U6: 9 | V6: 56.3 % | W6: 13
B7: 2003 | C7: 2. | D7: ViVe | E7: 20 | F7: 0 | G7: 27 | H7: 11 | I7: 69 | J7: 53.5 % | K7: 129
X9: 2007 | Y9: 1. | Z9: NJ 2 | AA9: 4 | AB9: 0 | AC9: 8 | AD9: 1 | AE9: 11 | AF9: 55.0 % | AG9: 20 | AM9: 7 | AN9: 1 | AO9: 18 | AP9: 6 | AQ9: 33 | AR9: 53.2 % | AS9: 62
B10: 2008 | C10: 5. | D10: YKV | E10: 21 | F10: 2 | G10: 46 | H10: 4 | I10: 83 | J10: 51.9 % | K10: 160 | L10: 2. | N10: 3.
B11: YHTEENSÄ | E11: =SUM(E4:E10) -> 115 | F11: =SUM(F4:F10) -> 11 | G11: =SUM(G4:G10) -> 123 | H11: =SUM(H4:H10) -> 80 | I11: =SUM(I4:I10) -> 475 | J11: =PRODUCT(I11/K11) -> 59.0 % | K11: =SUM(K4:K10) -> 805 | Q11: =SUM(Q4:Q10) -> 2 | R11: =SUM(R4:R10) -> 0 | S11: =SUM(S4:S10) -> 2 | T11: =SUM(T4:T10) -> 0 | U11: =SUM(U4:U10) -> 9 | V11: =PRODUCT(U11/W11) -> 69.2 % | W11: =SUM(W4:W10) -> 13 | X11: YHTEENSÄ | AA11: =SUM(AA4:AA10) -> 4 | AB11: =SUM(AB4:AB10) -> 0 | AC11: =SUM(AC4:AC10) -> 8 | AD11: =SUM(AD4:AD10) -> 1 | AE11: =SUM(AE4:AE10) -> 11 | AF11: =PRODUCT(AE11/AG11) -> 55.0 % | AG11: =SUM(AG4:AG10) -> 20 | AM11: =SUM(AM4:AM10) -> 7 | AN11: =SUM(AN4:AN10) -> 1 | AO11: =SUM(AO4:AO10) -> 18 | AP11: =SUM(AP4:AP10) -> 6 | AQ11: =SUM(AQ4:AQ10) -> 33 | AR11: =PRODUCT(AQ11/AS11) -> 53.2 % | AS11: =SUM(AS4:AS10) -> 62
B13: KAIKKI OTTELUT | E13: OTT | F13: KUN | G13: LÖI | H13: TOI | I13: KL | J13: KL-% | L13: ka/L | M13: ka/T | N13: ka/l+t | O13: ka/kl | R13: Seurat | T13: ViVe = Vimpelin Veto (1934), kasvattajaseura
B14: SUPERPESIS | E14: 163 | F14: 11 | G14: 168 | H14: 29 | I14: 356 | J14: 39.9 % | K14: =PRODUCT(I14/J14) -> 892.2305764 | L14: =PRODUCT((F14+G14)/E14) -> 1.10 | M14: =PRODUCT(H14/E14) -> 0.18 | N14: =PRODUCT((F14+G14+H14)/E14) -> 1.28 | O14: =PRODUCT(I14/E14) -> 2.18 | T14: NJ = Nurmon Jymy (1925)
B15: YKKÖSPESIS | E15: =PRODUCT(E11+Q11) -> 117 | F15: =PRODUCT(F11+R11) -> 11 | G15: =PRODUCT(G11+S11) -> 125 | H15: =PRODUCT(H11+T11) -> 80 | I15: =PRODUCT(I11+U11) -> 484 | J15: =PRODUCT(I15/K15) -> 59.2 % | K15: =PRODUCT(K11+W11) -> 818 | L15: =PRODUCT((F15+G15)/E15) -> 1.16 | M15: =PRODUCT(H15/E15) -> 0.68 | N15: =PRODUCT((F15+G15+H15)/E15) -> 1.85 | O15: =PRODUCT(I15/E15) -> 4.14 | T15: YKV = Ylistaron Kilpa-Veljet (1945)
B16: SUOMENSARJA | E16: =PRODUCT(AA11+AM11) -> 11 | F16: =PRODUCT(AB11+AN11) -> 1 | G16: =PRODUCT(AC11+AO11) -> 26 | H16: =PRODUCT(AD11+AP11) -> 7 | I16: =PRODUCT(AE11+AQ11) -> 44 | J16: =PRODUCT(I16/K16) -> 53.7 % | K16: =PRODUCT(AG11+AS11) -> 82 | L16: =PRODUCT((F16+G16)/E16) -> 2.45 | M16: =PRODUCT(H16/E16) -> 0.64 | N16: =PRODUCT((F16+G16+H16)/E16) -> 3.09 | O16: =PRODUCT(I16/E16) -> 4.00 | T16: SMJ = Seinäjoen Maila-Jussit (1932)
B17: YHTEENSÄ | E17: =SUM(E14:E16) -> 291 | F17: =SUM(F14:F16) -> 23 | G17: 319 | H17: 116 | I17: 884 | J17: =PRODUCT(I17/K17) -> 49.3 % | K17: =SUM(K14:K16) -> 1792.230576 | L17: =PRODUCT((F17+G17)/E17) -> 1.18 | M17: =PRODUCT(H17/E17) -> 0.40 | N17: =PRODUCT((F17+G17+H17)/E17) -> 1.57 | O17: =PRODUCT(I17/E17) -> 3.04 | T17: KoU = Koskenkorvan Urheilijat (1945)

Sheet Kärkilyönnit
B1: KÄRKILYÖNNIT RUNKOSARJASSA | V1: VUOSITTAISET SIJOITUKSET TOP - 30
G2: 0 > 1 | J2: 1 > 2 | M2: 2 > 3 | P2: 3 > k | S2: Yhteensä
B3: Vuosi | C3: Sija | D3: Seura | E3: OTT | F3: KL | G3: YHT | H3: % | I3: KL | J3: YHT | K3: % | L3: KL | M3: YHT | N3: % | O3: KL | P3: YHT | Q3: % | R3: KL | S3: YHT | T3: % | V3: Vuosi | W3: Sija | X3: Seura | Y3: 0 > 1 | Z3: 1 > 2 | AA3: 2 > 3 | AB3: 3 > k | AC3: KL
B4: 1995 | C4: 11. | D4: ViVe | E4: 2 | F4: 3 | G4: 5 | H4: =PRODUCT(F4/G4) -> 60.0 % | I4: 1 | J4: 2 | K4: =PRODUCT(I4/J4) -> 50.0 % | L4: 0 | M4: 2 | N4: =PRODUCT(L4/M4) -> 0.0 % | O4: 0 | P4: 0 | Q4: 0.0 % | R4: 4 | S4: =PRODUCT(G4+J4+M4+P4) -> 9 | T4: 44.4 % | V4: 1995 | W4: 11. | X4: ViVe
B5: 1996 | C5: 13. | D5: ViVe | E5: 12 | F5: 9 | G5: 23 | H5: =PRODUCT(F5/G5) -> 39.1 % | I5: 1 | J5: 3 | K5: =PRODUCT(I5/J5) -> 33.3 % | L5: 1 | M5: 3 | N5: =PRODUCT(L5/M5) -> 33.3 % | O5: 1 | P5: 4 | Q5: =PRODUCT(O5/P5) -> 25.0 % | R5: 12 | S5: =PRODUCT(G5+J5+M5+P5) -> 33 | T5: 33.3 % | V5: 1996 | W5: 13. | X5: ViVe
B6: **** | V6: ****
B7: 2004 | C7: 11. | D7: ViVe | E7: 23 | F7: 3 | G7: 8 | H7: 37.5 % | I7: 6 | J7: 12 | K7: 50.0 % | L7: 18 | M7: 39 | N7: 46.2 % | O7: 14 | P7: 52 | Q7: 26.9 % | R7: 41 | S7: 111 | T7: 36.9 % | V7: 2004 | W7: 11. | X7: ViVe
B8: 2005 | C8: 11. | D8: ViVe | E8: 24 | F8: 4 | G8: 5 | H8: 80.0 % | I8: 8 | J8: 14 | K8: 57.1 % | L8: 28 | M8: 51 | N8: 54.9 % | O8: 28 | P8: 84 | Q8: 33.3 % | R8: 68 | S8: 154 | T8: 44.2 % | V8: 2005 | W8: 11. | X8: ViVe | AB8: 19.
B9: 2006 | C9: 9. | D9: ViVe | E9: 27 | F9: 1 | G9: 6 | H9: 16.7 % | I9: 4 | J9: 5 | K9: 80.0 % | L9: 13 | M9: 28 | N9: 46.4 % | O9: 25 | P9: 72 | Q9: 34.7 % | R9: 43 | S9: 111 | T9: 38.7 % | V9: 2006 | W9: 9. | X9: ViVe | AB9: 27.
B10: 2007 | C10: 2. | D10: NJ | E10: 0 | V10: 2007 | W10: 2. | X10: NJ
B11: 2008 | C11: 10. | D11: SMJ | E11: 1 | F11: 0 | G11: 0 | H11: 0.0 % | I11: 0 | J11: 0 | K11: 0.0 % | L11: 0 | M11: 2 | N11: 0.0 % | O11: 3 | P11: 5 | Q11: 60.0 % | R11: 3 | S11: 7 | T11: 42.9 % | V11: 2008 | W11: 10. | X11: SMJ
B12: 2009 | C12: 6. | D12: KoU | E12: 22 | F12: 1 | G12: 5 | H12: 20.0 % | I12: 3 | J12: 10 | K12: 30.0 % | L12: 10 | M12: 34 | N12: 29.4 % | O12: 30 | P12: 89 | Q12: 33.7 % | R12: 44 | S12: 138 | T12: 31.9 % | V12: 2009 | W12: 6. | X12: KoU | AB12: 13.
B13: Yhteensä | E13: =SUM(E4:E12) -> 111 | F13: =SUM(F4:F12) -> 21 | G13: =SUM(G4:G12) -> 52 | H13: =PRODUCT(F13/G13) -> 40.4 % | I13: =SUM(I4:I12) -> 23 | J13: =SUM(J4:J12) -> 46 | K13: =PRODUCT(I13/J13) -> 50.0 % | L13: =SUM(L4:L12) -> 70 | M13: =SUM(M4:M12) -> 159 | N13: =PRODUCT(L13/M13) -> 44.0 % | O13: =SUM(O4:O12) -> 101 | P13: =SUM(P4:P12) -> 306 | Q13: =PRODUCT(O13/P13) -> 33.0 % | R13: =SUM(R4:R12) -> 215 | S13: =SUM(S4:S12) -> 563 | T13: 38.0 %
B15: KÄRKILYÖNNIT YLEMMISSÄ PUDOTUSPELEISSÄ | V15: VUOSITTAISET SIJOITUKSET TOP - 30
G16: 0 > 1 | J16: 1 > 2 | M16: 2 > 3 | P16: 3 > k | S16: Yhteensä
B17: Vuosi | C17: Sija | D17: Seura | E17: OTT | F17: KL | G17: YHT | H17: % | I17: KL | J17: YHT | K17: % | L17: KL | M17: YHT | N17: % | O17: KL | P17: YHT | Q17: % | R17: KL | S17: YHT | T17: % | V17: Vuosi | W17: Sija | X17: Seura | Y17: 0 > 1 | Z17: 1 > 2 | AA17: 2 > 3 | AB17: 3 > k | AC17: KL
B18: 2004 | C18: 9. | D18: ViVe | V18: 2004 | W18: 9. | X18: ViVe
B19: 2005 | C19: 10. | D19: ViVe | V19: 2005 | W19: 10. | X19: ViVe
B20: 2006 | C20: 10. | D20: ViVe | V20: 2006 | W20: 10. | X20: ViVe
B21: 2007 | C21: 4. | D21: NJ | E21: 5 | F21: 2 | G21: 5 | H21: 40.0 % | I21: 1 | J21: 3 | K21: 33.3 % | L21: 3 | M21: 5 | N21: 60.0 % | O21: 3 | P21: 8 | Q21: 37.5 % | R21: 9 | S21: 21 | T21: 42.9 % | V21: 2007 | W21: 4. | X21: NJ
B22: 2008 | C22: 10. | D22: SMJ | V22: 2008 | W22: 10. | X22: SMJ
B23: 2009 | C23: 6. | D23: KoU | E23: 6 | F23: 0 | G23: 2 | H23: 0.0 % | I23: 0 | J23: 2 | K23: 0.0 % | L23: 1 | M23: 5 | N23: 20.0 % | O23: 5 | P23: 19 | Q23: 26.3 % | R23: 6 | S23: 28 | T23: 21.4 % | V23: 2009 | W23: 6. | X23: KoU | AB23: 25.
B24: Yhteensä | E24: =SUM(E16:E23) -> 11 | F24: =SUM(F18:F23) -> 2 | G24: =SUM(G18:G23) -> 7 | H24: =PRODUCT(F24/G24) -> 28.6 % | I24: =SUM(I18:I23) -> 1 | J24: =SUM(J18:J23) -> 5 | K24: =PRODUCT(I24/J24) -> 20.0 % | L24: =SUM(L18:L23) -> 4 | M24: =SUM(M18:M23) -> 10 | N24: =PRODUCT(L24/M24) -> 40.0 % | O24: =SUM(O18:O23) -> 8 | P24: =SUM(P18:P23) -> 27 | Q24: =PRODUCT(O24/P24) -> 29.6 % | R24: =SUM(R18:R23) -> 15 | S24: =SUM(S18:S23) -> 49 | T24: =PRODUCT(R24/S24) -> 30.6 %
B26: KÄRKILYÖNNIT
G27: 0 > 1 | J27: 1 > 2 | M27: 2 > 3 | P27: 3 > k | S27: Yhteensä
E28: OTT | F28: KL | G28: YHT | H28: % | I28: KL | J28: YHT | K28: % | L28: KL | M28: YHT | N28: % | O28: KL | P28: YHT | Q28: % | R28: KL | S28: YHT | T28: %
B29: RUNKOSARJA | E29: =PRODUCT(E13) -> 111 | F29: =PRODUCT(F13) -> 21 | G29: =PRODUCT(G13) -> 52 | H29: =PRODUCT(H13) -> 40.4 % | I29: =PRODUCT(I13) -> 23 | J29: =PRODUCT(J13) -> 46 | K29: =PRODUCT(K13) -> 50.0 % | L29: =PRODUCT(L13) -> 70 | M29: =PRODUCT(M13) -> 159 | N29: =PRODUCT(N13) -> 44.0 % | O29: =PRODUCT(O13) -> 101 | P29: =PRODUCT(P13) -> 306 | Q29: =PRODUCT(Q13) -> 33.0 % | R29: =PRODUCT(R13) -> 215 | S29: =PRODUCT(S13) -> 563 | T29: =PRODUCT(T13) -> 38.0 %
B30: PLAY OFF | E30: =PRODUCT(E24) -> 11 | F30: =PRODUCT(F24) -> 2 | G30: 7 | H30: 28.6 % | I30: 1 | J30: 5 | K30: 20.0 % | L30: 4 | M30: 10 | N30: 40.0 % | O30: 8 | P30: 27 | Q30: 29.6 % | R30: 15 | S30: 49 | T30: 30.6 %
